fUSD/lending_fUSD_20240204
["ID","MTS","AMOUNT","RATE_DAILY","PERIOD"]
[313256021,1707036632299,-187.42032512,0.00022557,2]
[313256022,1707036632308,-155.41677054,0.00022557,2]
[313256023,1707036632317,-278.06640714,0.00022557,2]
[313256024,1707036632327,-197.83322609,0.00022557,2]
[313256025,1707036632336,-691.58394825,0.00022557,2]
[313256026,1707036632345,-1762.45193498,0.00022558,2]
[313256027,1707036632358,-95.71289711,0.00022558,2]
[313256028,1707036632367,-754.28710289,0.00022558,2]
[313256029,1707036632480,-456.81059646,0.00022558,2]
[313256030,1707036632491,-2047.11819916,0.00022558,2]
[313256031,1707036632500,-162.47294447,0.00022558,2]
[313256034,1707036638131,-1349.89,0.00022553,2]
[313256035,1707036638141,-3046.62692642,0.00022558,2]
[313256036,1707036638184,-2333.36605109,0.00022558,2]
[313256037,1707036638294,-830.4140315,0.00022558,2]
[313256038,1707036638304,-155.14532659,0.00022558,2]
[313256039,1707036638313,-247.45142877,0.00022559,2]
[313256040,1707036638323,-155.29184182,0.00022559,2]
[313256041,1707036638332,-462.36737132,0.00022559,2]
[313256042,1707036638344,-37.63262868,0.00022559,2]
[313256043,1707036638356,-2022.22687332,0.00022559,2]
[313256044,1707036638367,-2119.28349406,0.00022559,2]
[313256045,1707036638400,-491.64613668,0.00022559,2]
[313256049,1707036640617,-674.55248865,0.00022559,2]
[313256050,1707036641410,-857.28538711,0.00022559,2]
[313256065,1707036643253,-530.75948482,0.00022559,2]
[313256068,1707036643265,-1001.45,0.00022559,2]
[313256070,1707036643276,-1120.4,0.00022559,2]
[313256072,1707036643288,-2989.40080013,0.00022559,2]
[313256074,1707036643299,-3716.28616599,0.00022559,2]
[313256076,1707036646050,-346.24935774,0.00022559,2]
[313256077,1707036646105,-521.0849529,0.00022559,2]
[313256078,1707036646160,-14433.36058573,0.00022559,2]
[313256079,1707036646172,-1445.92927751,0.00022559,2]
[313256080,1707036646269,-503369.02213478,0.00022559,2]
[313256081,1707036646279,-865.39916615,0.0002256,4]
[313256082,1707036646288,-1000.0,0.000226,2]
[313256083,1707036646298,-150.0,0.00022636,2]
[313256084,1707036646307,-268.56411695,0.00022647,2]
[313256085,1707036646317,-1824.0,0.000227,2]
[313256086,1707036646326,-1632.0,0.0002277,2]
[313256087,1707036646336,-94560.0,0.000228,2]
[313256088,1707036646345,-1000.0,0.000228,2]
[313256089,1707036646358,-800.0,0.00022816,2]
[313256090,1707036646367,-201.883241,0.00022816,2]
[313256091,1707036646377,-160.72403378,0.00022899,2]
[313256092,1707036646386,-174.02841244,0.000229,2]
[313256093,1707036646396,-1068.54995948,0.000229,2]
[313256094,1707036646405,-5000.0,0.000229,2]
[313256105,1707036646569,-154.97617789,0.000229,2]
[313256107,1707036646579,-191.95597055,0.000229,2]
[313256109,1707036646588,-874.8348,0.00022959,10]
[313256111,1707036646598,-430.92778327,0.00022998,2]
[313256113,1707036646607,-274.51303228,0.00022998,2]
[313256115,1707036646616,-3308.69286577,0.00022999,2]
[313256117,1707036646624,-60883.92561949,0.00022999,2]
[313256119,1707036646633,-274845.54642095,0.00022999,3]
[313256121,1707036646643,-234054.05256177,0.00023,2]
[313256123,1707036646660,-4020.336615,0.00023,2]
[313256126,1707036646675,-45718.59301682,0.00023,2]
[313256249,1707036679802,30316.5436,0.00022459,2]
[313256250,1707036715475,1052.04857267,0.00022076,2]
[313256253,1707036880106,550.0,0.00022,3]
[313256254,1707036918154,150.53,0.00021918,2]
[313256255,1707036998208,161.39,0.00021834,2]
[313256256,1707037128136,601.4,0.00021824,2]
[313256257,1707037134019,1153.67316072,0.00022468,2]
[313256258,1707037150335,489.48,0.00021838,2]
[313256259,1707037171435,216.03,0.0001992,2]
[313256260,1707037171624,216.03,0.00022184,2]
[313256261,1707037227510,158.79243239,0.00022439,2]
[313256262,1707037254183,1080.86579131,0.00020589,2]
[313256263,1707037274230,1080.86579131,0.00020589,2]
[313256264,1707037302191,533.48576819,0.00020589,2]
[313256265,1707037304548,2337.9214617,0.00022439,2]
[313256266,1707037316938,155.0,0.00022439,2]
[313256267,1707037324557,-223.26580512,0.00022501,2]
[313256268,1707037326541,938.65725869,0.00022439,2]
[313256269,1707037334920,155.31271408,0.00022439,2]
[313256270,1707037337458,225.40452681,0.00022439,2]
[313256271,1707037340385,513.12,0.00021827,2]
[313256272,1707037356380,3175.57041946,0.00022428,2]
[313256273,1707037359860,155.0,0.000225,2]
[313256274,1707037377905,500.0,0.000225,2]
[313256275,1707037399780,156.37,0.00021836,2]
[313256276,1707037418494,1661.39,0.00021837,2]
[313256277,1707037433617,273.34266273,0.000225,2]
[313256278,1707037472637,1954.582436,0.00022388,2]
[313256279,1707037509077,273.34266273,0.000225,2]
[313256280,1707037558111,158.79243239,0.00022455,2]
[313256281,1707037565492,621.65,0.00021782,2]
[313256282,1707037578081,273.34266273,0.000225,2]
[313256283,1707037609564,2204.06733357,0.00021962,2]
[313256284,1707037621380,171.43949759,0.00021918,2]
[313256285,1707037621406,171.43949759,0.00021918,2]
[313256286,1707037621428,7136.23100482,0.00021918,2]
[313256287,1707037655091,273.34266273,0.000225,2]
[313256288,1707037661227,608.41,0.00021779,2]
[313256289,1707037688443,161.08,0.00021782,2]
[313256290,1707037698250,209.8,0.00019866,2]
[313256291,1707037698440,209.8,0.0002213,2]
[313256292,1707037702339,1852.42,0.00021784,2]
[313256293,1707037736599,273.34266273,0.000225,2]
[313256294,1707037771585,3197.13386433,0.00021962,2]
[313256295,1707037778958,3234.19,0.00021781,2]
[313256296,1707037779237,1500.0,0.00021733,2]
[313256297,1707037787581,316.05520571,0.00021962,2]
[313256298,1707037798110,690.48074307,0.000225,2]
[313256299,1707037813607,273.34266273,0.000225,2]
[313256302,1707037832247,-98.48788641,0.00022501,2]
[313256304,1707037832257,-157.66,0.00022502,2]
[313256306,1707037832266,-306.37861515,0.00022554,2]
[313256309,1707037832354,-1559.89357429,0.00022554,2]
[313256310,1707037832366,-1400.0,0.00022554,2]
[313256311,1707037832413,-74.85039545,0.00022554,2]
[313256312,1707037832422,-407.37860822,0.00022555,2]
[313256313,1707037832433,-319.52139178,0.00022555,2]
[313256314,1707037832443,-264.93319891,0.0002256,2]
[313256315,1707037832455,-460.79680109,0.0002256,2]
[313256316,1707037832465,-716.69,0.00022581,2]
[313256317,1707037832474,-719.72,0.00022588,2]
[313256318,1707037832483,-150.0,0.0002259,2]
[313256319,1707037832492,-710.18,0.0002259,2]
[313256320,1707037832502,-736.25,0.00022591,2]
[313256321,1707037832511,-714.35,0.00022591,2]
[313256322,1707037832521,-499.99,0.00022591,2]
[313256323,1707037832529,-714.63,0.00022591,2]
[313256324,1707037832539,-736.08,0.00022593,2]
[313256325,1707037832548,-860.04737948,0.000226,2]
[313256332,1707037838250,-139.95262052,0.000226,2]
[313256333,1707037838259,-630.95807623,0.00022648,2]
[313256334,1707037838272,-237.57071547,0.00022648,2]
[313256335,1707037838282,-150.0,0.00022742,2]
[313256336,1707037838293,-150.0,0.00022743,2]
[313256337,1707037838303,-150.0,0.00022743,2]
[313256338,1707037838312,-150.0,0.00022752,2]
[313256339,1707037838322,-150.0,0.00022754,2]
[313256340,1707037838332,-150.0,0.00022758,2]
[313256341,1707037838342,-150.0,0.00022761,2]
[313256342,1707037838352,-150.0,0.00022767,2]
[313256343,1707037838361,-150.0,0.00022771,2]
[313256344,1707037838371,-1500.0,0.00022774,2]
[313256345,1707037838381,-607.3152,0.00022779,2]
[313256346,1707037838390,-150.0,0.0002278,2]
[313256347,1707037838400,-150.0,0.00022785,2]
[313256348,1707037838410,-456.68267344,0.00022791,2]
[313256349,1707037838419,-150.0,0.000228,2]
[313256350,1707037838429,-150.0,0.00022808,2]
[313256351,1707037838439,-800.0,0.00022815,2]
[313256352,1707037838448,-800.0,0.00022816,2]
[313256353,1707037838457,-201.883241,0.00022816,2]
[313256354,1707037838467,-150.0,0.00022844,2]
[313256355,1707037838476,-150.0,0.00022855,2]
[313256356,1707037838487,-150.0,0.00022857,2]
[313256357,1707037838496,-106.12160728,0.00022877,2]
[313256358,1707037838508,-51.24705533,0.00022877,2]
[313256359,1707037838518,-500.0,0.00022877,2]
[313256360,1707037838528,-273.34266273,0.00022878,2]
[313256361,1707037838538,-7166.93775319,0.00022879,2]
[313256362,1707037838555,-651.59,0.00022879,2]
[313256363,1707037838567,-443.83778674,0.00022879,2]
[313256364,1707037838579,-2995.44500001,0.00022879,2]
[313256365,1707037838592,-1859.67759079,0.00022879,2]
[313256366,1707037838618,-4203.73320046,0.00022879,2]
[313256367,1707037838633,-333.42,0.00022879,2]
[313256369,1707037838648,-20599.6055744,0.00022879,2]
[313256371,1707037838659,-534.94030156,0.00022879,2]
[313256384,1707037840932,-968.17508356,0.00022879,2]
[313256385,1707037841633,-1889.55629042,0.00022879,2]
[313256388,1707037843257,-2902.93965498,0.00022879,2]
[313256389,1707037843269,-635.90693463,0.00022879,2]
[313256390,1707037843314,-664.00152642,0.00022879,2]
[313256391,1707037843324,-837.93466786,0.00022879,2]
[313256392,1707037843372,-500.0,0.00022879,2]
[313256393,1707037843384,-943.24512146,0.00022879,2]
[313256394,1707037843395,-1909.90824921,0.00022879,2]
[313256395,1707037843406,-1051.547,0.00022879,2]
[313256396,1707037843417,-360.88240256,0.00022879,2]
[313256397,1707037843428,-373.45767937,0.00022879,2]
[313256398,1707037843443,-6743.90894464,0.00022879,2]
[313256399,1707037843458,-46617.39613701,0.00022879,2]
[313256400,1707037843487,-24625.77982363,0.00022879,2]
[313256401,1707037843497,-160733.10301381,0.0002288,2]
[313256402,1707037843506,-150.0,0.00022891,2]
[313256403,1707037843516,-736.63,0.00022895,2]
[313256404,1707037843525,-715.4,0.00022895,2]
[313256405,1707037843533,-728.61,0.00022898,2]
[313256406,1707037843543,-729.64,0.00022898,2]
[313256407,1707037843553,-6226.28024989,0.00022899,2]
[313256408,1707037843563,-174.02841244,0.000229,2]
[313256409,1707037843573,-5000.0,0.000229,2]
[313256410,1707037843582,-1068.54995948,0.000229,2]
[313256411,1707037843591,-191.95597055,0.000229,2]
[313256412,1707037843601,-154.97617789,0.000229,2]
[313256414,1707037843610,-2100.04731927,0.000229,2]
[313256415,1707037843619,-247.9177624,0.000229,2]
[313256416,1707037843628,-761.38718191,0.000229,2]
[313256417,1707037843638,-151.40577756,0.000229,2]
[313256418,1707037843647,-150.0,0.00022909,2]
[313256419,1707037843656,-1500.0,0.00022911,2]
[313256421,1707037843665,-150.0,0.00022925,2]
[313256422,1707037843673,-874.8348,0.00022932,10]
[313256423,1707037843682,-150.0,0.00022959,2]
[313256424,1707037843692,-150.0,0.00022965,2]
[313256425,1707037843701,-150.0,0.00022979,2]
[313256426,1707037843716,-430.92778327,0.00022984,2]
[313256427,1707037843725,-178.58971379,0.00022996,2]
[313256428,1707037843735,-321.04868877,0.00022996,2]
[313256429,1707037843745,-155.69912269,0.00022997,2]
[313256430,1707037843756,-245.85810557,0.00022998,2]
[313256431,1707037843766,-163.08390295,0.00022998,2]
[313256432,1707037843777,-2802.52747424,0.00022998,2]
[313256433,1707037843790,-205.44929766,0.00022998,2]
[313256434,1707037843801,-264.87878158,0.00022998,2]
[313256435,1707037843810,-3073.46606203,0.00022998,2]
[313256436,1707037843820,-481.69275539,0.00022998,2]
[313256437,1707037843830,-155.39964942,0.00022998,2]
[313256438,1707037843840,-202.18313352,0.00022998,2]
[313256439,1707037843850,-157.78864269,0.00022998,2]
[313256440,1707037843860,-33051.65465518,0.00022998,2]
[313256441,1707037843870,-202.02490714,0.00022998,2]
[313256442,1707037843881,-224.0730635,0.00022998,2]
[313256443,1707037843892,-173.5066908,0.00022998,2]
[313256444,1707037843902,-501.41289716,0.00022998,2]
[313256445,1707037843913,-155.80915845,0.00022998,2]
[313256446,1707037843922,-308.75878457,0.00022998,2]
[313256447,1707037843931,-156.07601116,0.00022998,2]
[313256448,1707037843943,-198.78035499,0.00022998,2]
[313256449,1707037843954,-339.16151334,0.00022998,2]
[313256450,1707037843965,-156.20974732,0.00022998,2]
[313256451,1707037843974,-298.05134141,0.00022998,2]
[313256452,1707037843984,-201.40993587,0.00022998,2]
[313256453,1707037843994,-3148.06260981,0.00022998,2]
[313256454,1707037844005,-156.36124959,0.00022998,2]
[313256455,1707037844015,-2185.92531246,0.00022998,2]
[313256456,1707037844025,-349.15767598,0.00022998,2]
[313256457,1707037844037,-155.83664294,0.00022998,2]
[313256458,1707037844047,-7669.77616698,0.00022998,2]
[313256459,1707037844058,-2148.1042989,0.00022998,2]
[313256460,1707037844069,-5472.51431834,0.00022998,2]
[313256461,1707037844079,-165.94888058,0.00022998,2]
[313256462,1707037844090,-498.61187547,0.00022998,2]
[313256463,1707037844100,-545.54257087,0.00022998,2]
[313256464,1707037844110,-155.44821257,0.00022998,2]
[313256465,1707037844120,-9388.79827779,0.00022998,2]
[313256466,1707037844130,-506.82461875,0.00022999,2]
[313256467,1707037844140,-10586.42210638,0.00022999,2]
[313256468,1707037844149,-961.68000001,0.00022999,2]
[313256469,1707037844158,-151.05979893,0.00022999,2]
[313256470,1707037844168,-274.51303228,0.00022999,2]
[313256471,1707037844177,-2270.81981354,0.00022999,2]
[313256472,1707037844186,-274845.54642095,0.00023,3]
[313256473,1707037844195,-66324.12083812,0.00023,2]
[313256474,1707037844209,-62795.32771961,0.00023,2]
[313256475,1707037844222,-592.53143083,0.00023,2]
[313256476,1707037844233,-6404.49287643,0.00023,2]
[313256477,1707037844245,-2367.78954802,0.00023,2]
[313256498,1707037849790,-885.0,0.00022999,2]
[313256499,1707037849953,-1559.62987938,0.00022999,2]
[313256500,1707037849962,-2270.81981353,0.00022999,2]
[313256501,1707037849972,-106042.12984215,0.00023,2]
[313256502,1707037850014,-7885.08986798,0.00023,2]
[313256503,1707037850027,-27606.66920338,0.00023,2]
[313256504,1707037850179,-273.34266273,0.00022999,2]
[313256505,1707037850190,-723423.99137889,0.00023,2]
[313256508,1707037930736,622.39886001,0.00022078,2]
[313256509,1707038068872,612.13701719,0.00022078,2]
[313256510,1707038088867,612.13701719,0.00022078,2]
[313256511,1707038101001,664.06710244,0.00022078,4]
[313256512,1707038106828,155.4227415,0.00022078,2]
[313256513,1707038108630,246.78938768,0.00020696,2]
[313256514,1707038108858,612.13701719,0.00022078,2]
[313256515,1707038111211,293.38916151,0.00022078,2]
[313256516,1707038119623,3197.13386433,0.00022076,2]
[313256517,1707038126830,5236.93580623,0.00022078,2]
[313256518,1707038127640,156.17255457,0.00020696,2]
[313256519,1707038128399,1127.31344632,0.00022078,2]
[313256520,1707038128876,612.13701719,0.00022078,2]
[313256521,1707038129090,848.83921823,0.00022078,2]
[313256522,1707038132199,1039.32025311,0.00022078,2]
[313256523,1707038133084,164.46,0.00018009,2]
[313256524,1707038133680,267.4127316,0.00022078,2]
[313256525,1707038135201,500.0,0.00022078,2]
[313256526,1707038135795,568.13566964,0.00020466,2]
[313256527,1707038136931,209.83550311,0.00022078,2]
[313256528,1707038137581,536.28088837,0.00022078,2]
[313256529,1707038137957,1028.9758009,0.00022078,2]
[313256530,1707038142444,422.36401781,0.00020696,2]
[313256531,1707038144881,451.00687698,0.00022078,2]
[313256532,1707038145080,848.83921823,0.00022078,2]
[313256533,1707038148819,155.0,0.00022078,2]
[313256534,1707038149983,859.728529,0.00022078,2]
[313256535,1707038150427,297.66991151,0.00022078,2]
[313256536,1707038150844,5204.41118884,0.00022078,2]
[313256537,1707038155660,218.02,0.00020536,2]
[313256538,1707038155741,220.41136649,0.00022078,2]
[313256539,1707038157564,311.14270125,0.00022078,2]
[313256540,1707038166867,5204.41118884,0.00022078,2]
[313256541,1707038169958,1027.55956204,0.00022078,2]
[313256542,1707038171970,815.31012914,0.00022078,2]
[313256543,1707038177657,732.18690129,0.00021,2]
[313256544,1707038179077,868.09004092,0.00022078,2]
[313256545,1707038183457,2144.65,0.00022241,2]
[313256546,1707038184984,155.0,0.00022078,2]
[313256547,1707038188546,2199.21581963,0.00021857,2]
[313256548,1707038188840,5204.41118884,0.00022241,2]
[313256549,1707038204529,2187.64640673,0.00022019,2]
[313256550,1707038204817,160.41886282,0.00022241,2]
[313256551,1707038224534,2213.55690926,0.00022019,2]
[313256552,1707038306119,219.15,0.00022237,2]
[313256553,1707038373661,209.0,0.00021635,2]
[313256554,1707038535153,685.52,0.00022375,2]
[313256555,1707038546301,-169.17506135,0.00022501,2]
[313256556,1707038549767,-152.57863018,0.00022501,2]
[313256557,1707038598896,154.15,0.00022468,2]
[313256558,1707038612850,220.26,0.00020518,2]
[313256559,1707038623500,486.73,0.00022369,2]
[313256560,1707038669510,169.18,0.00022444,2]
[313256561,1707038686832,550.0,0.00022,3]
[313256562,1707038714518,157.35573261,0.00022444,2]
[313256563,1707038793254,-273.34266273,0.00022508,2]
[313256564,1707038793277,-321.75369153,0.00022509,2]
[313256565,1707038793300,-513.27,0.00022515,2]
[313256566,1707038793322,-200.0,0.00022686,2]
[313256567,1707038793344,-1000.0,0.000227,2]
[313256568,1707038793366,-719.51,0.00022717,2]
[313256569,1707038793388,-169.87335413,0.0002274,2]
[313256604,1707039031511,-321.75369153,0.00022739,2]
[313256606,1707039031521,-273.34266273,0.00022739,2]
[313256608,1707039031531,-566.10664587,0.0002274,2]
[313256609,1707039031541,-1632.0,0.0002277,2]
[313256610,1707039031552,-860.973,0.0002278,2]
[313256611,1707039031562,-200.0,0.00022816,2]
[313256612,1707039031573,-200.0,0.00022816,2]
[313256613,1707039031584,-150.0,0.00022863,2]
[313256614,1707039031594,-571.26,0.00022874,2]
[313256615,1707039031605,-150.0,0.00022899,2]
[313256616,1707039031616,-174.02841244,0.000229,2]
[313256617,1707039031626,-1225.54486382,0.000229,2]
[313256618,1707039031637,-165.27850826,0.000229,2]
[313256619,1707039031648,-225.92680161,0.000229,2]
[313256620,1707039034271,-777.69528534,0.000229,2]
[313256621,1707039034327,-3996.37791305,0.000229,2]
[313256622,1707039034336,-499.99,0.000229,2]
[313256623,1707039034345,-191.95597055,0.000229,2]
[313256624,1707039034355,-154.97617789,0.000229,2]
[313256625,1707039034365,-186.34751204,0.000229,2]
[313256626,1707039034375,-857.22720863,0.00022998,2]
[313256627,1707039034393,-1335.2737206,0.00022998,2]
[313256628,1707039034404,-2422.75344093,0.00022998,2]
[313256648,1707039042568,-425.70696426,0.00022898,2]
[313256649,1707039042577,-8909.66813263,0.000229,2]
[313256650,1707039042626,-3111.92860358,0.000229,2]
[313256651,1707039042637,-1033.6517363,0.000229,2]
[313256652,1707039042682,-8112.03124072,0.000229,2]
[313256660,1707039043547,-1425.15916734,0.000229,2]
[313256664,1707039043711,-683.02496267,0.000229,2]
[313256665,1707039044369,-1501.6129499,0.000229,2]
[313256666,1707039044426,-28110.41783016,0.000229,2]
[313256679,1707039045514,-9720.84987533,0.000229,2]
[313256681,1707039045526,-124009.55550137,0.000229,2]
[313256682,1707039045535,-543596.07230857,0.00022998,2]
[313256683,1707039045544,-500.0,0.00022998,2]
[313256684,1707039045553,-417.1124126,0.00022998,2]
[313256685,1707039045562,-55671.7734376,0.00022999,2]
[313256686,1707039045572,-137662.26859386,0.00023,3]
[313256687,1707039045582,-177494.53444413,0.00023,2]
[313256688,1707039045591,-166713.35700672,0.00023,2]
[313256689,1707039045602,-360.45183548,0.00023,2]
[313256690,1707039045629,-1067.45675685,0.00023,2]
[313256691,1707039045743,-5222.47178857,0.00023,2]
[313256692,1707039114300,1600.0,0.00022308,2]
[313256693,1707039114322,893.13625924,0.00022308,2]
[313256696,1707039138865,184.55491842,0.00020698,2]
[313256697,1707039302613,30830.06,0.00021958,2]
[313256698,1707039452700,476.05,0.00021948,2]
[313256699,1707039470012,226.08,0.00020001,2]
[313256700,1707039470434,226.08,0.00022265,2]
[313256701,1707039475788,305.59,0.00021919,2]
[313256702,1707039498765,389.39,0.00021934,2]
[313256703,1707039502108,173.89,0.00017535,2]
[313256704,1707039506784,157.32998881,0.00022455,2]
[313256705,1707039524188,200.0,0.00021909,2]
[313256706,1707039526792,1200.36634071,0.00022332,2]
[313256707,1707039545323,518.99,0.00021909,2]
[313256708,1707039566816,23900.0,0.00021909,2]
[313256709,1707039579338,209.99999999,0.00025,30]
[313256710,1707039583217,163.32,0.00022064,2]
[313256711,1707039583439,163.32,0.00022192,2]
[313256712,1707039583654,163.32,0.00022319,2]
[313256713,1707039583851,163.32,0.00022447,2]
[313256714,1707039616339,4173.39,0.0002187,2]
[313256715,1707039649647,166.74,0.0002187,2]
[313256716,1707039679218,676.49072932,0.0002187,2]
[313256717,1707039728511,179.96,0.0002188,2]
[313256718,1707039779898,163.1,0.00021885,2]
[313256719,1707039783861,209.0,0.00021898,2]
[313256720,1707039817976,7084.94,0.00021876,2]
[313256721,1707039825998,150.0,0.00021867,2]
[313256722,1707039826020,150.0,0.00021867,2]
[313256723,1707039826041,200.0,0.00021867,2]
[313256724,1707039906456,150.0,0.00022473,2]
[313256725,1707039906857,1208.14853738,0.00022275,2]
[313256726,1707039907177,1208.14853738,0.00022493,2]
[313256727,1707039914109,2000.0,0.00021886,2]
[313256728,1707039950130,513.02,0.00022131,2]
[313256729,1707039974679,528.41,0.00022174,2]
[313256730,1707039982257,237.83,0.00020256,2]
[313256731,1707040013538,158.78,0.00022286,2]
[313256732,1707040013760,158.78,0.00022392,2]
[313256733,1707040013948,158.78,0.00022497,2]
[313256734,1707040040510,688.48,0.00022045,2]
[313256735,1707040057890,161.08,0.00022045,2]
[313256750,1707040231693,-321.75369153,0.00022511,2]
[313256751,1707040231704,-488.92621759,0.00022512,2]
[313256752,1707040231714,-614.98349207,0.00022515,2]
[313256753,1707040231861,-388.36357712,0.00022515,2]
[313256754,1707040231870,-853.66442288,0.00022515,2]
[313256782,1707040237695,-149.68264631,0.00022515,2]
[313256783,1707040237706,-1003.34706919,0.00022515,2]
[313256784,1707040237715,-1003.34706919,0.00022515,2]
[313256785,1707040237725,-1003.34706919,0.00022515,2]
[313256786,1707040237734,-1003.34706919,0.00022515,2]
[313256787,1707040237743,-1003.34706919,0.00022515,2]
[313256788,1707040237752,-237.83,0.0002252,2]
[313256789,1707040237761,-158.78,0.00022603,2]
[313256790,1707040237770,-158.78,0.00022709,2]
[313256791,1707040237780,-830.17781161,0.00022798,2]
[313256792,1707040237789,-1045.03306234,0.00022798,2]
[313256793,1707040237802,-300.0,0.00022799,2]
[313256794,1707040237811,-150.0,0.00022799,2]
[313256795,1707040237821,-3952.98000652,0.000228,2]
[313256796,1707040237833,-10871.83225641,0.000228,2]
[313256797,1707040237858,-903.28295328,0.000228,2]
[313256798,1707040237870,-626.14298553,0.000228,2]
[313256799,1707040237882,-342.82992223,0.000228,2]
[313256800,1707040237920,-428.32625124,0.000228,2]
[313256805,1707040240313,-1102.51309385,0.000228,2]
[313256806,1707040240326,-105781.64253094,0.000228,2]
[313256807,1707040240335,-665.52451679,0.000228,2]
[313256808,1707040240345,-158.78,0.00022814,2]
[313256809,1707040240354,-200.0,0.00022815,2]
[313256810,1707040240364,-200.0,0.00022816,2]
[313256811,1707040240374,-200.0,0.00022816,2]
[313256812,1707040240383,-1850.5397768,0.00022897,2]
[313256813,1707040240393,-12352.5292006,0.00022897,2]
[313256814,1707040240403,-277.54322475,0.00022898,2]
[313256815,1707040240413,-191.07095683,0.00022898,2]
[313256816,1707040240422,-6726.57359647,0.00022898,2]
[313256817,1707040240434,-310.33773127,0.00022898,2]
[313256818,1707040240446,-1887.27893299,0.00022898,2]
[313256819,1707040240455,-4304.00917133,0.00022898,2]
[313256820,1707040240464,-2167.52559884,0.00022898,2]
[313256821,1707040240474,-1068.83824203,0.00022898,2]
[313256822,1707040240483,-500.0,0.00022898,2]
[313256823,1707040240492,-231.34778786,0.00022898,2]
[313256824,1707040240501,-186.73634645,0.00022898,2]
[313256825,1707040240510,-2144.43375818,0.00022898,2]
[313256826,1707040240521,-126329.31366702,0.00022899,2]
[313256827,1707040240533,-8421.80980072,0.00022899,2]
[313256828,1707040240545,-484.29600592,0.00022899,2]
[313256829,1707040240556,-1196.63849997,0.00022899,2]
[313256830,1707040240575,-365.49689089,0.00022899,2]
[313256831,1707040241173,-935.73500001,0.00022899,2]
[313256832,1707040241244,-541.16397787,0.00022899,2]
[313256833,1707040241256,-2283.81170497,0.00022899,2]
[313256834,1707040241268,-357.71235685,0.00022899,2]
[313256860,1707040242662,-1075.5,0.00022899,2]
[313256868,1707040242889,-2997.91200872,0.00022899,2]
[313256869,1707040242902,-2437.31074833,0.00022899,2]
[313256870,1707040242949,-765.28989038,0.00022899,2]
[313256874,1707040245700,-302.29212228,0.00022898,2]
[313256875,1707040245714,-19.46156925,0.00022898,2]
[313256876,1707040245724,-405107.55175693,0.00022899,2]
[313256877,1707040245734,-5106.6649,0.000229,2]
[313256878,1707040245744,-3145.625,0.000229,2]
[313256879,1707040245754,-174.02841244,0.000229,2]
[313256880,1707040245763,-596.99032771,0.000229,2]
[313256881,1707040245773,-158.78,0.0002292,2]
[313256882,1707040245783,-155.0,0.00022998,2]
[313256883,1707040245792,-220.30306813,0.00022998,2]
[313256884,1707040245801,-637.00641291,0.00022998,2]
[313256885,1707040245811,-1975.82438987,0.00022998,2]
[313256886,1707040245821,-303.63726256,0.00022998,2]
[313256887,1707040245830,-158.30695886,0.00022998,2]
[313256888,1707040245839,-644.14940004,0.00022998,2]
[313256889,1707040245848,-5442.70539136,0.00022998,2]
[313256890,1707040245857,-155.60261424,0.00022998,2]
[313256891,1707040245867,-1179.44455971,0.00022998,2]
[313256892,1707040245877,-268.56411695,0.00022998,2]
[313256893,1707040245886,-55671.7734376,0.00022998,2]
[313256894,1707040245896,-500.0,0.00022999,2]
[313256895,1707040245906,-500.0,0.00022999,2]
[313256896,1707040245916,-500.0,0.00022999,2]
[313256897,1707040245925,-162.57821368,0.00022999,2]
[313256898,1707040245935,-500.0,0.00022999,2]
[313256899,1707040245944,-500.0,0.00022999,2]
[313256900,1707040245954,-500.0,0.00022999,2]
[313256901,1707040245963,-500.0,0.00022999,2]
[313256902,1707040245973,-500.0,0.00022999,2]